fUST/lending_fUST_20250719
["ID","MTS","AMOUNT","RATE_DAILY","PERIOD"]
[373296691,1752930655164,-460.0,0.00018712,2]
[373296692,1752930655175,-460.0,0.00018712,2]
[373296693,1752930655185,-475.11,0.00018712,2]
[373296694,1752930655195,-460.0,0.00018712,2]
[373296695,1752930655204,-460.0,0.00018712,2]
[373296696,1752930655214,-460.0,0.00018712,2]
[373296697,1752930655227,-460.0,0.00018712,2]
[373296698,1752930655241,-263.18766542,0.00018712,2]
[373296699,1752930655250,-460.0,0.00018712,2]
[373296700,1752930655259,-460.0,0.00018712,2]
[373296701,1752930655269,-565.63938079,0.00018712,2]
[373296702,1752930655278,-549.91,0.00018712,2]
[373296703,1752930655287,-460.0,0.00018712,2]
[373296704,1752930655297,-460.0,0.00018712,2]
[373296705,1752930655307,-460.0,0.00018712,2]
[373296706,1752930655317,-460.0,0.00018712,2]
[373296707,1752930655327,-457.05616723,0.00018712,2]
[373296708,1752930655339,-460.0,0.00018712,2]
[373296709,1752930655349,-460.0,0.00018712,2]
[373296710,1752930655358,-460.0,0.00018712,2]
[373296711,1752930655373,-460.0,0.00018712,2]
[373296712,1752930655386,-460.0,0.00018712,2]
[373296713,1752930655396,-460.0,0.00018712,2]
[373296714,1752930655408,-460.0,0.00018712,2]
[373296715,1752930655418,-460.0,0.00018712,2]
[373296716,1752930655428,-460.0,0.00018712,2]
[373296717,1752930655438,-460.0,0.00018712,2]
[373296718,1752930655447,-374.17503605,0.00018712,2]
[373296719,1752930655458,-460.0,0.00018712,2]
[373296720,1752930655468,-460.0,0.00018712,2]
[373296721,1752930655478,-460.0,0.00018712,2]
[373296722,1752930655488,-159.20314097,0.00018712,2]
[373296723,1752930655497,-460.0,0.00018712,2]
[373296724,1752930655507,-460.0,0.00018712,2]
[373296725,1752930655518,-460.0,0.00018712,2]
[373296726,1752930655527,-198.11978747,0.00018712,2]
[373296727,1752930655536,-460.0,0.00018712,2]
[373296728,1752930655546,-1862.19,0.00018712,2]
[373296729,1752930655555,-1230.43,0.00018712,2]
[373296730,1752930655565,-460.0,0.00018712,2]
[373296731,1752930655574,-460.0,0.00018712,2]
[373296732,1752930655585,-460.0,0.00018712,2]
[373296733,1752930655595,-460.0,0.00018712,2]
[373296734,1752930655604,-460.0,0.00018712,2]
[373296735,1752930655614,-1337.04,0.00018712,2]
[373296736,1752930655624,-460.0,0.00018712,2]
[373296737,1752930655634,-460.0,0.00018712,2]
[373296738,1752930655643,-460.0,0.00018712,2]
[373296739,1752930655653,-4535.76,0.00018712,2]
[373296740,1752930655663,-684.36,0.00018712,2]
[373296741,1752930655673,-460.0,0.00018712,2]
[373296742,1752930655682,-460.0,0.00018712,2]
[373296743,1752930655691,-1460.05,0.00018712,2]
[373296744,1752930655701,-417.97343759,0.00018712,2]
[373296745,1752930655711,-460.0,0.00018712,2]
[373296746,1752930655720,-1119.72,0.00018712,2]
[373296747,1752930655730,-460.0,0.00018712,2]
[373296748,1752930655740,-740.72,0.00018712,2]
[373296749,1752930655750,-460.0,0.00018712,2]
[373296750,1752930655760,-791.47,0.00018712,2]
[373296751,1752930655770,-460.0,0.00018712,2]
[373296752,1752930655780,-460.0,0.00018712,2]
[373296753,1752930655790,-460.0,0.00018712,2]
[373296754,1752930655799,-460.0,0.00018712,2]
[373296755,1752930655809,-648.03,0.00018712,2]
[373296756,1752930655820,-460.0,0.00018712,2]
[373296757,1752930655831,-460.0,0.00018712,2]
[373296758,1752930655841,-1159.08,0.00018712,2]
[373296759,1752930655851,-460.0,0.00018712,2]
[373296760,1752930655861,-460.0,0.00018712,2]
[373296761,1752930655870,-460.0,0.00018712,2]
[373296762,1752930655879,-460.0,0.00018712,2]
[373296763,1752930655889,-460.0,0.00018712,2]
[373296764,1752930655899,-1459.28,0.00018712,2]
[373296765,1752930655909,-460.0,0.00018712,2]
[373296766,1752930655919,-460.0,0.00018712,2]
[373296767,1752930655928,-460.0,0.00018712,2]
[373296768,1752930655938,-900.24,0.00018712,2]
[373296769,1752930655947,-460.0,0.00018712,2]
[373296770,1752930655957,-460.0,0.00018712,2]
[373296771,1752930655967,-589.8,0.00018712,2]
[373296772,1752930655977,-2648.84,0.00018712,2]
[373296773,1752930655986,-4950.42392709,0.00018728,2]
[373296774,1752930655996,-2872.15274685,0.000189,2]
[373296775,1752930656006,-174.63255657,0.00018925,2]
[373296776,1752930656016,-1500.0,0.00018925,2]
[373296777,1752930656025,-571.37948771,0.00018925,2]
[373296778,1752930656035,-1500.0,0.00018925,2]
[373296779,1752930656045,-1500.0,0.00018925,2]
[373296780,1752930656054,-1500.0,0.00018925,2]
[373296781,1752930656065,-753.62936932,0.00018965,2]
[373296782,1752930656084,-152.40871687,0.00018985,2]
[373296783,1752930656101,-460.0,0.00018985,2]
[373296784,1752930656117,-460.0,0.00018985,2]
[373296785,1752930656127,-460.0,0.00018985,2]
[373296786,1752930656138,-816.45,0.00018985,2]
[373296787,1752930656148,-460.0,0.00018986,2]
[373296788,1752930656157,-465.47598296,0.00018986,2]
[373296789,1752930656167,-460.0,0.00018986,2]
[373296790,1752930656177,-463.69,0.00018986,2]
[373296791,1752930656187,-460.0,0.00018986,2]
[373296792,1752930656197,-292.56207713,0.00018986,2]
[373296793,1752930656207,-460.0,0.00018986,2]
[373296794,1752930656216,-460.0,0.00018986,2]
[373296795,1752930656229,-1497.34,0.00018986,2]
[373296796,1752930656238,-460.0,0.00018986,2]
[373296797,1752930656247,-537.33,0.00018986,2]
[373296798,1752930656257,-439.80618325,0.00018986,2]
[373296799,1752930656266,-460.0,0.00018986,2]
[373296800,1752930656276,-460.0,0.00018986,2]
[373296801,1752930656286,-460.0,0.00018986,2]
[373296802,1752930656296,-460.0,0.00018986,2]
[373296803,1752930656305,-460.0,0.00018986,2]
[373296804,1752930656314,-460.0,0.00018986,2]
[373296805,1752930656324,-460.0,0.00018986,2]
[373296806,1752930656334,-549.91,0.00018986,2]
[373296807,1752930656344,-460.0,0.00018986,2]
[373296808,1752930656353,-460.0,0.00018986,2]
[373296809,1752930656362,-460.0,0.00018986,2]
[373296810,1752930656371,-460.0,0.00018986,2]
[373296811,1752930656380,-460.0,0.00018986,2]
[373296812,1752930656389,-460.0,0.00018986,2]
[373296813,1752930656399,-460.0,0.00018986,2]
[373296814,1752930656409,-460.0,0.00018986,2]
[373296815,1752930656418,-460.0,0.00018986,2]
[373296816,1752930656427,-460.0,0.00018986,2]
[373296817,1752930656436,-460.0,0.00018986,2]
[373296818,1752930656446,-460.0,0.00018986,2]
[373296819,1752930656455,-460.0,0.00018986,2]
[373296820,1752930656464,-460.0,0.00018986,2]
[373296821,1752930656474,-460.0,0.00018986,2]
[373296822,1752930656483,-460.0,0.00018986,2]
[373296823,1752930656493,-460.0,0.00018986,2]
[373296824,1752930656502,-460.0,0.00018986,2]
[373296825,1752930656512,-460.0,0.00018986,2]
[373296826,1752930656522,-460.0,0.00018986,2]
[373296827,1752930656531,-1862.19,0.00018986,2]
[373296828,1752930656540,-1230.43,0.00018986,2]
[373296829,1752930656550,-460.0,0.00018986,2]
[373296830,1752930656559,-460.0,0.00018986,2]
[373296831,1752930656570,-460.0,0.00018986,2]
[373296832,1752930656580,-460.0,0.00018986,2]
[373296833,1752930656589,-460.0,0.00018986,2]
[373296834,1752930656599,-174.18791115,0.00018986,2]
[373296835,1752930656608,-460.0,0.00018986,2]
[373296836,1752930656617,-1337.04,0.00018986,2]
[373296837,1752930656627,-460.0,0.00018986,2]
[373296838,1752930656636,-460.0,0.00018986,2]
[373296839,1752930656646,-460.0,0.00018986,2]
[373296840,1752930656655,-460.0,0.00018986,2]
[373296841,1752930656665,-4535.76,0.00018986,2]
[373296842,1752930656674,-684.36,0.00018986,2]
[373296843,1752930656683,-460.0,0.00018986,2]
[373296844,1752930656693,-460.0,0.00018986,2]
[373296845,1752930656702,-1460.05,0.00018986,2]
[373296846,1752930656712,-460.0,0.00018986,2]
[373296847,1752930656721,-1119.72,0.00018986,2]
[373296848,1752930656731,-460.0,0.00018986,2]
[373296849,1752930656741,-740.72,0.00018986,2]
[373296850,1752930656751,-460.0,0.00018986,2]
[373296851,1752930656760,-791.47,0.00018986,2]
[373296852,1752930656770,-460.0,0.00018986,2]
[373296853,1752930656779,-217.34,0.00018986,2]
[373296854,1752930656788,-460.0,0.00018986,2]
[373296855,1752930656797,-648.03,0.00018986,2]
[373296856,1752930656810,-460.0,0.00018986,2]
[373296857,1752930656819,-462.34,0.00018986,2]
[373296858,1752930656829,-1159.08,0.00018986,2]
[373296859,1752930656838,-460.0,0.00018986,2]
[373296860,1752930656848,-460.0,0.00018986,2]
[373296861,1752930656858,-460.0,0.00018986,2]
[373296862,1752930656867,-460.0,0.00018986,2]
[373296863,1752930656877,-460.0,0.00018986,2]
[373296864,1752930656887,-1459.28,0.00018986,2]
[373296865,1752930656896,-460.0,0.00018986,2]
[373296866,1752930656905,-460.0,0.00018986,2]
[373296867,1752930656915,-900.24,0.00018986,2]
[373296868,1752930656925,-460.0,0.00018986,2]
[373296869,1752930656935,-460.0,0.00018986,2]
[373296870,1752930656945,-460.0,0.00018986,2]
[373296871,1752930656954,-589.8,0.00018986,2]
[373296872,1752930656963,-2648.84,0.00018986,2]
[373296873,1752930656972,-151.0,0.00018987,2]
[373296874,1752930656982,-4950.42392709,0.00019003,2]
[373296875,1752930656991,-500.0,0.00019017,2]
[373296876,1752930657001,-500.0,0.00019017,2]
[373296877,1752930657010,-300.0,0.00019044,2]
[373296878,1752930657019,-500.0,0.00019138,2]
[373296879,1752930657030,-500.0,0.00019138,2]
[373296880,1752930657039,-500.0,0.00019138,2]
[373296881,1752930657048,-500.0,0.00019138,2]
[373296882,1752930657058,-340.687604,0.00019178,2]
[373296883,1752930657067,-207.4,0.0001924,2]
[373296884,1752930657077,-3801.642,0.0001924,2]
[373296885,1752930657090,-460.0,0.00019259,2]
[373296886,1752930657102,-450.79405297,0.00019259,2]
[373296887,1752930657112,-816.45,0.00019259,2]
[373296888,1752930657122,-460.0,0.0001926,2]
[373296889,1752930657131,-460.0,0.0001926,2]
[373296890,1752930657143,-460.0,0.0001926,2]
[373296891,1752930657153,-460.0,0.0001926,2]
[373296892,1752930657162,-460.0,0.0001926,2]
[373296893,1752930657173,-1497.34,0.0001926,2]
[373296894,1752930657182,-240.52609319,0.0001926,2]
[373296895,1752930657192,-537.33,0.0001926,2]
[373296896,1752930657201,-460.0,0.0001926,2]
[373296897,1752930657211,-460.0,0.0001926,2]
[373296898,1752930657220,-550.92734134,0.0001926,2]
[373296899,1752930657230,-411.52004054,0.0001926,2]
[373296900,1752930657239,-460.0,0.0001926,2]
[373296901,1752930657249,-460.0,0.0001926,2]
[373296902,1752930657259,-503.28961543,0.0001926,2]
[373296903,1752930657270,-549.91,0.0001926,2]
[373296904,1752930657279,-460.0,0.0001926,2]
[373296905,1752930657289,-460.0,0.0001926,2]
[373296906,1752930657299,-460.0,0.0001926,2]
[373296907,1752930657308,-460.0,0.0001926,2]
[373296908,1752930657318,-460.0,0.0001926,2]
[373296909,1752930657327,-460.0,0.0001926,2]
[373296910,1752930657341,-460.0,0.0001926,2]
[373296911,1752930657351,-460.0,0.0001926,2]
[373296912,1752930657361,-460.0,0.0001926,2]
[373296913,1752930657372,-460.0,0.0001926,2]
[373296914,1752930657382,-460.0,0.0001926,2]
[373296915,1752930657392,-460.0,0.0001926,2]
[373296916,1752930657402,-460.0,0.0001926,2]
[373296917,1752930657414,-460.0,0.0001926,2]
[373296918,1752930657425,-460.0,0.0001926,2]
[373296919,1752930657435,-460.0,0.0001926,2]
[373296920,1752930657445,-460.0,0.0001926,2]
[373296921,1752930657456,-460.0,0.0001926,2]
[373296922,1752930657466,-460.0,0.0001926,2]
[373296923,1752930657478,-1862.19,0.0001926,2]
[373296924,1752930657488,-1230.43,0.0001926,2]
[373296925,1752930657499,-460.0,0.0001926,2]
[373296926,1752930657509,-460.0,0.0001926,2]
[373296927,1752930657518,-460.0,0.0001926,2]
[373296928,1752930657528,-460.0,0.0001926,2]
[373296929,1752930657538,-460.0,0.0001926,2]
[373296930,1752930657548,-460.0,0.0001926,2]
[373296931,1752930657557,-1337.04,0.0001926,2]
[373296932,1752930657567,-460.0,0.0001926,2]
[373296933,1752930657577,-460.0,0.0001926,2]
[373296934,1752930657590,-4535.76,0.0001926,2]
[373296935,1752930657600,-684.36,0.0001926,2]
[373296936,1752930657610,-460.0,0.0001926,2]
[373296937,1752930657620,-460.0,0.0001926,2]
[373296938,1752930657630,-1460.05,0.0001926,2]
[373296939,1752930657640,-460.0,0.0001926,2]
[373296940,1752930657650,-1119.72,0.0001926,2]
[373296941,1752930657660,-460.0,0.0001926,2]
[373296942,1752930657670,-740.72,0.0001926,2]
[373296943,1752930657680,-460.0,0.0001926,2]
[373296944,1752930657690,-791.47,0.0001926,2]
[373296945,1752930657699,-460.0,0.0001926,2]
[373296946,1752930657708,-460.0,0.0001926,2]
[373296947,1752930657717,-648.03,0.0001926,2]
[373296948,1752930657727,-460.0,0.0001926,2]
[373296949,1752930657736,-460.0,0.0001926,2]
[373296950,1752930657745,-1159.08,0.0001926,2]
[373296951,1752930657755,-460.0,0.0001926,2]
[373296952,1752930657764,-460.0,0.0001926,2]
[373296953,1752930657774,-460.0,0.0001926,2]
[373296954,1752930657784,-460.0,0.0001926,2]
[373296955,1752930657794,-1459.28,0.0001926,2]
[373296956,1752930657803,-460.0,0.0001926,2]
[373296957,1752930657812,-460.0,0.0001926,2]
[373296958,1752930657822,-900.24,0.0001926,2]
[373296959,1752930657832,-460.0,0.0001926,2]
[373296960,1752930657842,-460.0,0.0001926,2]
[373296961,1752930657852,-460.0,0.0001926,2]
[373296962,1752930657862,-589.8,0.0001926,2]
[373296963,1752930657871,-2648.84,0.0001926,2]
[373296964,1752930657881,-4950.42392709,0.00019279,2]
[373296965,1752930657891,-86629.29424444,0.00019329,2]
[373296966,1752930657901,-8802.90101835,0.00019384,2]
[373296967,1752930657910,-151.0,0.0001939,2]
[373296968,1752930657921,-151.85065,0.00019452,2]
[373296969,1752930657931,-1179.88427532,0.00019473,2]
[373296970,1752930657941,-2000.0,0.00019473,2]
[373296971,1752930657951,-504.31142319,0.00019473,2]
[373296972,1752930657960,-460.0,0.00019533,2]
[373296973,1752930657971,-816.45,0.00019533,2]
[373296974,1752930657981,-460.0,0.00019534,2]
[373296975,1752930657990,-489.29855073,0.00019534,2]
[373296976,1752930658000,-460.0,0.00019534,2]
[373296977,1752930658010,-1497.34,0.00019534,2]
[373296978,1752930658019,-537.33,0.00019534,2]
[373296979,1752930658030,-570.70372442,0.00019534,2]
[373296980,1752930658040,-460.0,0.00019534,2]
[373296981,1752930658049,-460.0,0.00019534,2]
[373296982,1752930658059,-549.91,0.00019534,2]
[373296983,1752930658069,-460.0,0.00019534,2]
[373296984,1752930658078,-460.0,0.00019534,2]
[373296985,1752930658089,-460.0,0.00019534,2]
[373296986,1752930658103,-460.0,0.00019534,2]
[373296987,1752930658112,-460.0,0.00019534,2]
[373296988,1752930658122,-460.0,0.00019534,2]
[373296989,1752930658132,-542.52178713,0.00019534,2]
[373296990,1752930658143,-460.0,0.00019534,2]
[373296991,1752930658153,-460.0,0.00019534,2]
[373296992,1752930658302,-460.0,0.00019534,2]
[373296993,1752930658311,-460.0,0.00019534,2]
[373296994,1752930658322,-460.0,0.00019534,2]
[373296995,1752930658334,-460.0,0.00019534,2]
[373296996,1752930658343,-460.0,0.00019534,2]
[373296997,1752930658353,-460.0,0.00019534,2]
[373296998,1752930658363,-460.0,0.00019534,2]
[373296999,1752930658373,-460.0,0.00019534,2]
[373297000,1752930658383,-460.0,0.00019534,2]
[373297001,1752930658393,-1862.19,0.00019534,2]
[373297002,1752930658402,-1230.43,0.00019534,2]
[373297003,1752930658412,-460.0,0.00019534,2]
[373297004,1752930658421,-460.0,0.00019534,2]
[373297005,1752930658430,-460.0,0.00019534,2]
[373297006,1752930658439,-460.0,0.00019534,2]
[373297007,1752930658448,-460.0,0.00019534,2]
[373297008,1752930658458,-460.0,0.00019534,2]
[373297009,1752930658467,-1337.04,0.00019534,2]
[373297010,1752930658476,-460.0,0.00019534,2]
[373297011,1752930658486,-517.38878987,0.00019534,2]
[373297012,1752930658495,-4535.76,0.00019534,2]
[373297013,1752930658506,-684.36,0.00019534,2]
[373297014,1752930658515,-460.0,0.00019534,2]
[373297015,1752930658524,-1460.05,0.00019534,2]
[373297016,1752930658534,-460.0,0.00019534,2]
[373297017,1752930658544,-1119.72,0.00019534,2]
[373297018,1752930658554,-460.0,0.00019534,2]
[373297019,1752930658564,-740.72,0.00019534,2]
[373297020,1752930658574,-460.0,0.00019534,2]
[373297021,1752930658585,-791.47,0.00019534,2]
[373297022,1752930658594,-460.0,0.00019534,2]
[373297023,1752930658603,-460.0,0.00019534,2]
[373297024,1752930658613,-648.03,0.00019534,2]
[373297025,1752930658623,-460.0,0.00019534,2]
[373297026,1752930658633,-1159.08,0.00019534,2]
[373297027,1752930658642,-460.0,0.00019534,2]
[373297028,1752930658652,-460.0,0.00019534,2]
[373297029,1752930658661,-460.0,0.00019534,2]
[373297030,1752930658671,-597.35215289,0.00019534,2]
[373297031,1752930658681,-460.0,0.00019534,2]
[373297032,1752930658691,-1459.28,0.00019534,2]
[373297033,1752930658700,-460.0,0.00019534,2]
[373297034,1752930658710,-460.0,0.00019534,2]
[373297035,1752930658720,-900.24,0.00019534,2]
[373297036,1752930658729,-200.44819275,0.00019534,2]
[373297037,1752930658738,-460.0,0.00019534,2]
[373297038,1752930658748,-460.0,0.00019534,2]
[373297039,1752930658758,-589.8,0.00019534,2]
[373297040,1752930658768,-2648.84,0.00019534,2]
[373297041,1752930658778,-4950.42392709,0.00019555,2]
[373297042,1752930658788,-1000.0,0.00019686,2]
[373297043,1752930658798,-1000.0,0.00019686,2]
[373297044,1752930658807,-1000.0,0.00019686,2]
[373297045,1752930658817,-460.0,0.00019807,2]
[373297046,1752930658827,-816.45,0.00019807,2]
[373297047,1752930658841,-460.0,0.00019808,2]
[373297048,1752930658851,-460.0,0.00019808,2]
[373297049,1752930658861,-1497.34,0.00019808,2]
[373297050,1752930658870,-537.33,0.00019808,2]
[373297051,1752930658880,-460.0,0.00019808,2]
[373297052,1752930658890,-549.91,0.00019808,2]
[373297053,1752930658900,-460.0,0.00019808,2]
[373297054,1752930658910,-460.0,0.00019808,2]
[373297055,1752930658919,-460.0,0.00019808,2]
[373297056,1752930658928,-460.0,0.00019808,2]
[373297057,1752930658938,-460.0,0.00019808,2]
[373297058,1752930658948,-460.0,0.00019808,2]
[373297059,1752930658958,-460.0,0.00019808,2]
[373297060,1752930658967,-460.0,0.00019808,2]
[373297061,1752930658977,-460.0,0.00019808,2]
[373297062,1752930658986,-460.0,0.00019808,2]
[373297063,1752930658996,-460.0,0.00019808,2]
[373297064,1752930659006,-460.0,0.00019808,2]
[373297065,1752930659016,-460.0,0.00019808,2]
[373297066,1752930659026,-460.0,0.00019808,2]
[373297067,1752930659036,-460.0,0.00019808,2]
[373297068,1752930659046,-1862.19,0.00019808,2]
[373297069,1752930659055,-1230.43,0.00019808,2]
[373297070,1752930659065,-460.0,0.00019808,2]
[373297071,1752930659074,-199.12593399,0.00019808,2]
[373297072,1752930659086,-460.0,0.00019808,2]
[373297073,1752930659096,-460.0,0.00019808,2]
[373297074,1752930659109,-460.0,0.00019808,2]
[373297075,1752930659118,-460.0,0.00019808,2]
[373297076,1752930659128,-1337.04,0.00019808,2]
[373297077,1752930659138,-460.0,0.00019808,2]
[373297078,1752930659148,-4535.76,0.00019808,2]
[373297079,1752930659158,-684.36,0.00019808,2]
[373297080,1752930659167,-460.0,0.00019808,2]
[373297081,1752930659179,-1460.05,0.00019808,2]
[373297082,1752930659190,-460.0,0.00019808,2]
[373297083,1752930659200,-1119.72,0.00019808,2]
[373297084,1752930659210,-460.0,0.00019808,2]
[373297085,1752930659219,-740.72,0.00019808,2]
[373297086,1752930659229,-460.0,0.00019808,2]
[373297087,1752930659239,-791.47,0.00019808,2]
[373297088,1752930659248,-460.0,0.00019808,2]
[373297089,1752930659258,-460.0,0.00019808,2]
[373297090,1752930659268,-648.03,0.00019808,2]
[373297091,1752930659278,-240.06681902,0.00019808,2]
[373297092,1752930659288,-1159.08,0.00019808,2]
[373297093,1752930659298,-170.59,0.00019808,2]
[373297094,1752930659307,-460.0,0.00019808,2]
[373297095,1752930659318,-460.0,0.00019808,2]
[373297096,1752930659327,-1459.28,0.00019808,2]
[373297097,1752930659339,-460.0,0.00019808,2]
[373297098,1752930659348,-460.0,0.00019808,2]
[373297099,1752930659358,-900.24,0.00019808,2]
[373297100,1752930659367,-460.0,0.00019808,2]
[373297101,1752930659377,-460.0,0.00019808,2]
[373297102,1752930659386,-589.8,0.00019808,2]
[373297103,1752930659396,-2648.84,0.00019808,2]
[373297104,1752930659406,-4950.42392709,0.00019831,2]
[373297105,1752930659415,-500.0,0.00019863,2]
[373297106,1752930659424,-500.0,0.00019865,2]
[373297107,1752930659434,-500.0,0.00019937,2]
[373297108,1752930659444,-151.0,0.0002,2]
[373297109,1752930659454,-173.416,0.0002,2]
[373297110,1752930659463,-300.40023785,0.0002,2]
[373297111,1752930659473,-4000.0,0.0002,4]
[373297112,1752930659482,-506.81965426,0.00020021,2]
[373297113,1752930659491,-460.0,0.00020081,2]
[373297114,1752930659503,-816.45,0.00020081,2]
[373297115,1752930659512,-460.0,0.00020082,2]
[373297116,1752930659522,-460.0,0.00020082,2]
[373297117,1752930659534,-1497.34,0.00020082,2]
[373297118,1752930659544,-537.33,0.00020082,2]
[373297119,1752930659553,-460.0,0.00020082,2]
[373297120,1752930659564,-549.91,0.00020082,2]
[373297121,1752930659573,-460.0,0.00020082,2]
[373297122,1752930659585,-460.0,0.00020082,2]
[373297123,1752930659594,-460.0,0.00020082,2]
[373297124,1752930659604,-460.0,0.00020082,2]
[373297125,1752930659613,-432.34563837,0.00020082,2]
[373297126,1752930659623,-460.0,0.00020082,2]
[373297127,1752930659633,-460.0,0.00020082,2]
[373297128,1752930659642,-460.0,0.00020082,2]
[373297129,1752930659652,-460.0,0.00020082,2]
[373297130,1752930659662,-460.0,0.00020082,2]
[373297131,1752930659671,-460.0,0.00020082,2]
[373297132,1752930659681,-460.0,0.00020082,2]
[373297133,1752930659691,-460.0,0.00020082,2]
[373297134,1752930659701,-334.3282315,0.00020082,2]
[373297135,1752930659711,-460.0,0.00020082,2]
[373297136,1752930659720,-1862.19,0.00020082,2]
[373297137,1752930659730,-1230.43,0.00020082,2]
[373297138,1752930659744,-460.0,0.00020082,2]
[373297139,1752930659759,-460.0,0.00020082,2]
[373297140,1752930659773,-460.0,0.00020082,2]
[373297141,1752930659787,-460.0,0.00020082,2]
[373297142,1752930659799,-239.04642602,0.00020082,2]
[373297143,1752930659811,-1337.04,0.00020082,2]
[373297144,1752930659824,-460.0,0.00020082,2]
[373297145,1752930659838,-4535.76,0.00020082,2]
[373297146,1752930659851,-684.36,0.00020082,2]
[373297147,1752930659867,-460.0,0.00020082,2]
[373297148,1752930659880,-1460.05,0.00020082,2]
[373297149,1752930659894,-460.0,0.00020082,2]
[373297150,1752930659908,-1119.72,0.00020082,2]
[373297151,1752930659923,-460.0,0.00020082,2]
[373297152,1752930659936,-740.72,0.00020082,2]
[373297153,1752930659949,-460.0,0.00020082,2]
[373297154,1752930659962,-791.47,0.00020082,2]
[373297155,1752930659974,-460.0,0.00020082,2]
[373297156,1752930659988,-460.0,0.00020082,2]
[373297157,1752930660000,-648.03,0.00020082,2]
[373297158,1752930660013,-1159.08,0.00020082,2]
[373297159,1752930660025,-460.0,0.00020082,2]
[373297160,1752930660036,-460.0,0.00020082,2]
[373297161,1752930660049,-1459.28,0.00020082,2]
[373297162,1752930660061,-460.0,0.00020082,2]
[373297163,1752930660075,-460.0,0.00020082,2]
[373297164,1752930660088,-900.24,0.00020082,2]
[373297165,1752930660109,-460.0,0.00020082,2]
[373297166,1752930660121,-460.0,0.00020082,2]
[373297167,1752930660136,-589.8,0.00020082,2]
[373297168,1752930660150,-2648.84,0.00020082,2]
[373297169,1752930660163,-4950.42392709,0.00020107,2]
[373297170,1752930660176,-507.304083,0.00020187,2]
[373297171,1752930660187,-203.428,0.00020207,2]
[373297172,1752930660199,-175.61,0.00020207,2]
[373297173,1752930660210,-1500.0,0.00020234,2]
[373297174,1752930660221,-1500.0,0.00020234,2]
[373297175,1752930660236,-1500.0,0.00020234,2]
[373297176,1752930660251,-753.62936932,0.00020236,2]
[373297177,1752930660264,-460.0,0.00020355,2]
[373297178,1752930660275,-816.45,0.00020355,2]
[373297179,1752930660286,-281.95789548,0.00020356,2]
[373297180,1752930660298,-1497.34,0.00020356,2]
[373297181,1752930660311,-537.33,0.00020356,2]
[373297182,1752930660324,-152.97,0.00020356,2]
[373297183,1752930660336,-549.91,0.00020356,2]
[373297184,1752930660347,-460.0,0.00020356,2]
[373297185,1752930660359,-460.0,0.00020356,2]
[373297186,1752930660371,-460.0,0.00020356,2]
[373297187,1752930660383,-344.111953,0.00020356,2]
[373297188,1752930660395,-460.0,0.00020356,2]
[373297189,1752930660406,-595.56806391,0.00020356,2]
[373297190,1752930660418,-460.0,0.00020356,2]